Workbook

Sheet паспорт
A1: ПАТ "УКРТРАНСГАЗ" | G1: ПАСПОРТ ФІЗИКО-ХІМІЧНИХ ПОКАЗНИКІВ ПРИРОДНОГО ГАЗУ № 645
A2: Філія "УМГ "ХАРКІВТРАНСГАЗ" | G2: переданого Сєвєродонецьким ЛВУМГ та прийнятого ПАТ "Луганськгаз"
A3: Сєвєродонецьке ЛВУМГ | G3: Маршрут № 645
A4: Вимірювальна хіміко-аналітична лабораторія
A5: Свідоцтво № РЬ089/2014 чинно до 06.06.2017 р. | K5: по газопроводу "Краснопопівка-Рубіжне" | V5: за період з | X5: 01.02.2017 р. | Z5: по | AA5: 28.02.2017 р.
A7: Число місяця | B7: Компонентний склад, мол. % | N7: Фізико-хімічні показники газу обчислені на основі компонентного складу, 101,325 кПа | X7: Температура точки роси за вологою (Р = 3.92 МПа), °С | Y7: Температура точки роси за вуглеводнями, °С | Z7: Вміст сірководню, г/м3 | AA7: Вміст меркаптанової сірки, г/м3 | AB7: Вміст механічних домішок, г/м3
N8: Густина абсолютна, кг/м3,при 20 °С, | O8: Температура вимірювання/згоряння при 20/25°С
B9: метан, С1 | C9: етан, С2 | D9: пропан, С3 | E9: ізо-бутан, і-С4 | F9: н-бутан, н-С4 | G9: нео-пентан, нео-С5 | H9: ізо-пентан, і-С5 | I9: н-пентан, н-С5 | J9: гексани та вищі, С6+ | K9: кисень, О2 | L9: азот, N2 | M9: діоксид вуглецю, CО2 | O9: Теплота згоряння нижча | R9: Теплота згоряння вища | U9: Число Воббе вище
O10: ккал/м³ | P10: МДж/м³ | Q10: кВт⋅год/м³ | R10: ккал/м³ | S10: МДж/м³ | T10: кВт⋅год/м³ | U10: ккал/м³ | V10: МДж/м³ | W10: кВт⋅год/м³
A11: 1 | O11: =P11*238.8459 -> 8190.025911 | P11: 34.29 | Q11: =P11/3.6 -> 9.525 | R11: =S11*238.8459 -> 9740.135802 | S11: 40.78 | T11: =S11/3.6 -> 11.32777778 | U11: =V11/0.0041868 -> 11550.25318 | V11: 48.3586 | W11: =V11/3.6 -> 13.43294444 | AC11: =SUM(B11:M11)+$K$42+$N$42 -> 0
A12: 2 | B12: 91.0129 | C12: 3.4832 | D12: 1.1194 | E12: 0.1467 | F12: 0.2592 | G12: 0.006 | H12: 0.0597 | I12: 0.0534 | J12: 0.1178 | K12: 0.0102 | L12: 2.733 | M12: 0.9985 | N12: 0.7405 | O12: =P12*238.8459 -> 8183.027726 | P12: 34.2607 | Q12: =P12/3.6 -> 9.516861111 | R12: 9730.581966 | S12: 40.74 | T12: =S12/3.6 -> 11.31666667 | U12: 11556.36763 | V12: 48.3842 | W12: 13.44005556 | AC12: 100
A13: 3 | O13: 8183.027726 | P13: 34.2607 | Q13: 9.516861111 | R13: 9730.581966 | S13: 40.74 | T13: 11.31666667 | U13: 11581.90026 | V13: 48.4911 | W13: 13.46975 | AC13: 0 | AD13: =IF(AC13=100,"ОК"," ") -> 
A14: 4 | O14: 8183.027726 | P14: 34.2607 | Q14: 9.516861111 | R14: 9730.581966 | S14: 40.74 | T14: 11.31666667 | U14: 11556.36763 | V14: 48.3842 | W14: 13.44005556 | AC14: 0 | AD14: =IF(AC14=100,"ОК"," ") -> 
A15: 5 | O15: 8183.027726 | P15: 34.2607 | Q15: 9.516861111 | R15: 9730.581966 | S15: 40.74 | T15: 11.31666667 | U15: 11581.90026 | V15: 48.4911 | W15: 13.46975 | AC15: 0
A16: 6 | B16: 91.3953 | C16: 3.3551 | D16: 1.0985 | E16: 0.1421 | F16: 0.2502 | G16: 0.0092 | H16: 0.0673 | I16: 0.0596 | J16: 0.0792 | K16: 0.0101 | L16: 2.6974 | M16: 0.836 | N16: 0.7365 | O16: 8177.940308 | P16: 34.2394 | Q16: 9.510944444 | R16: 9725.805048 | S16: 40.72 | T16: 11.31111111 | U16: 11581.90026 | V16: 48.4911 | W16: 13.46975 | X16: -5.2 | Y16: -7.5 | AC16: 100 | AD16: ОК
A17: 7 | O17: 8177.940308 | P17: 34.2394 | Q17: 9.510944444 | R17: 9725.805048 | S17: 40.72 | T17: 11.31111111 | U17: 11581.90026 | V17: 48.4911 | W17: 13.46975 | AC17: 0
A18: 8 | O18: 8177.940308 | P18: 34.2394 | Q18: 9.510944444 | R18: 9725.805048 | S18: 40.72 | T18: 11.31111111 | U18: 11581.90026 | V18: 48.4911 | W18: 13.46975 | AC18: 0
A19: 9 | O19: 8177.940308 | P19: 34.2394 | Q19: 9.510944444 | R19: 9725.805048 | S19: 40.72 | T19: 11.31111111 | U19: 11581.90026 | V19: 48.4911 | W19: 13.46975 | AC19: 0
A20: 10 | O20: 8177.940308 | P20: 34.2394 | Q20: =P20/3.6 -> 9.510944444 | R20: 9725.805048 | S20: 40.72 | T20: =S20/3.6 -> 11.31111111 | U20: 11581.90026 | V20: 48.4911 | W20: 13.46975 | AC20: 0
A21: 11 | O21: 8177.940308 | P21: 34.2394 | Q21: 9.510944444 | R21: 9725.805048 | S21: 40.72 | T21: 11.31111111 | U21: 11581.90026 | V21: 48.4911 | W21: 13.46975 | AC21: 0
A22: 12 | O22: 8177.940308 | P22: 34.2394 | Q22: 9.510944444 | R22: 9725.805048 | S22: 40.72 | T22: 11.31111111 | U22: 11581.90026 | V22: 48.4911 | W22: 13.46975 | AC22: 0
A23: 13 | B23: 91.0727 | C23: 3.4551 | D23: 1.1122 | E23: 0.1501 | F23: 0.262 | G23: 0.005 | H23: 0.0646 | I23: 0.0568 | J23: 0.0877 | K23: 0.0116 | L23: 2.7315 | M23: 0.9907 | N23: 0.7396 | O23: 8174.596466 | P23: 34.2254 | Q23: 9.507055556 | R23: 9721.02813 | S23: 40.7 | T23: 11.30555556 | U23: 11552.28337 | V23: 48.3671 | W23: 13.43530556 | AC23: 100 | AD23: ОК
A24: 14 | O24: 8174.596466 | P24: 34.2254 | Q24: 9.507055556 | R24: 9721.02813 | S24: 40.7 | T24: 11.30555556 | U24: 11552.28337 | V24: 48.3671 | W24: 13.43530556 | AC24: 0
A25: 15 | O25: 8174.596466 | P25: 34.2254 | Q25: 9.507055556 | R25: 9721.02813 | S25: 40.7 | T25: 11.30555556 | U25: 11552.28337 | V25: 48.3671 | W25: 13.43530556 | AC25: 0
A26: 16 | O26: 8174.596466 | P26: 34.2254 | Q26: =P26/3.6 -> 9.507055556 | R26: 9721.02813 | S26: 40.7 | T26: =S26/3.6 -> 11.30555556 | U26: 11552.28337 | V26: 48.3671 | W26: 13.43530556 | AC26: 0
A27: 17 | O27: 8174.596466 | P27: 34.2254 | Q27: 9.507055556 | R27: 9721.02813 | S27: 40.7 | T27: 11.30555556 | U27: 11552.28337 | V27: 48.3671 | W27: 13.43530556 | AC27: 0
A28: 18 | O28: 8174.596466 | P28: 34.2254 | Q28: 9.507055556 | R28: 9721.02813 | S28: 40.7 | T28: 11.30555556 | U28: 11552.28337 | V28: 48.3671 | W28: 13.43530556 | AC28: 0
A29: 19 | O29: 8174.596466 | P29: 34.2254 | Q29: 9.507055556 | R29: 9721.02813 | S29: 40.7 | T29: 11.30555556 | U29: 11552.28337 | V29: 48.3671 | W29: 13.43530556 | AC29: 0
A30: 20 | O30: 8174.596466 | P30: 34.2254 | Q30: 9.507055556 | R30: 9721.02813 | S30: 40.7 | T30: 11.30555556 | U30: 11552.28337 | V30: 48.3671 | W30: 13.43530556 | AC30: 0 | AD30: =IF(AC30=100,"ОК"," ") -> 
A31: 21 | O31: 8174.596466 | P31: 34.2254 | Q31: 9.507055556 | R31: 9721.02813 | S31: 40.7 | T31: 11.30555556 | U31: 11552.28337 | V31: 48.3671 | W31: 13.43530556 | AC31: 0
A32: 22 | B32: 91.696 | C32: 3.2501 | D32: 1.0616 | E32: 0.139 | F32: 0.2428 | G32: 0.0065 | H32: 0.0633 | I32: 0.0557 | J32: 0.0698 | K32: 0.0094 | L32: 2.6125 | M32: 0.7933 | N32: 0.7338 | O32: 8169.580702 | P32: 34.2044 | Q32: 9.501222222 | R32: 9716.251212 | S32: 40.68 | T32: 11.3 | U32: 11592.12286 | V32: 48.5339 | W32: 13.48163889 | X32: -2.6 | Y32: -1.4 | Z32: 0.0001 | AA32: 0.002 | AB32: відс | AC32: 100 | AD32: ОК
A33: 23 | O33: 8169.580702 | P33: 34.2044 | Q33: =P33/3.6 -> 9.501222222 | R33: 9716.251212 | S33: 40.68 | T33: =S33/3.6 -> 11.3 | U33: 11592.12286 | V33: 48.5339 | W33: 13.48163889 | AC33: 0 | AD33: =IF(AC33=100,"ОК"," ") -> 
A34: 24 | O34: 8169.580702 | P34: 34.2044 | Q34: 9.501222222 | R34: 9716.251212 | S34: 40.68 | T34: 11.3 | U34: 11592.12286 | V34: 48.5339 | W34: 13.48163889 | AC34: 0
A35: 25 | O35: 8169.580702 | P35: 34.2044 | Q35: 9.501222222 | R35: 9716.251212 | S35: 40.68 | T35: 11.3 | U35: 11592.12286 | V35: 48.5339 | W35: 13.48163889 | AC35: 0
A36: 26 | O36: 8169.580702 | P36: 34.2044 | Q36: 9.501222222 | R36: 9716.251212 | S36: 40.68 | T36: =S36/3.6 -> 11.3 | U36: 11592.12286 | V36: 48.5339 | W36: 13.48163889 | AC36: 0
A37: 27 | O37: 8169.580702 | P37: 34.2044 | Q37: 9.501222222 | R37: 9716.251212 | S37: 40.68 | T37: 11.3 | U37: 11592.12286 | V37: 48.5339 | W37: 13.48163889 | AC37: 0
A38: 28 | O38: 8169.580702 | P38: 34.2044 | Q38: 9.501222222 | R38: 9716.251212 | S38: 40.68 | T38: 11.3 | U38: 11592.12286 | V38: 48.5339 | W38: 13.48163889 | AC38: 0
A39: 29 | AC39: 0
A40: 30 | AC40: 0
A41: 31 | AC41: 0
A42: Рівень одоризації відповідає чинним нормативним документам | O42: =SUMPRODUCT(O11:O41,' розрахунок'!D7:D37)/' розрахунок'!D38 -> 8176.557864 | P42: =SUMPRODUCT(P11:P41,' розрахунок'!D7:D37)/' розрахунок'!D38 -> 34.23361198 | Q42: =SUMPRODUCT(Q11:Q41,' розрахунок'!D7:D37)/' розрахунок'!D38 -> 9.509336661 | R42: =SUMPRODUCT(R11:R41,' розрахунок'!D7:D37)/' розрахунок'!D38 -> 9723.796566 | S42: =SUMPRODUCT(S11:S41,' розрахунок'!D7:D37)/' розрахунок'!D38 -> 40.71159089 | T42: =SUMPRODUCT(T11:T41,' розрахунок'!D7:D37)/' розрахунок'!D38 -> 11.30877525
H43: Середньозважене значення теплоти згоряння:
B46: Начальник управління Сєвєродонецького ЛВУМГ Головко Ю.О.
C47: Підрозділу підприємства, якому підпорядкована лабораторія | O47: прізвище | R47: підпис | V47: дата
B48: Інженер ІІ кат.вимірювальної хіміко-аналітичної лабораторії Єрьоменко М.О.
C49: Лабораторія, де здійснювалось вимірювання газу | O49: прізвище | R49: підпис | V49: дата
B50: Начальник служби метрології Ісаєв В.С.
C51: Підрозділу, відповідального за облік газу за маршрутом | O51: прізвище | R51: підпис | V51: дата

Sheet розрахунок (hidden)
A2: Додаток до Паспорту фізико-хімічних показників природного газу по маршруту № 645
A4: Число місяця | B4: Теплота згоряння вища, МДж/м3 | C4: Луганська область | D4: Загальний обсяг газу, м3
C5: Обсяг газу переданого за добу, м3
C6: ГРС Краснопопівського ПСГ
A7: 1 | B7: 40.78 | C7: 3821.34 | D7: =SUM(C7:C7) -> 3821.34
A8: 2 | B8: 40.74 | C8: 3459.23 | D8: 3459.23
A9: 3 | B9: 40.74 | C9: 3453.09 | D9: 3453.09
A10: 4 | B10: 40.74 | C10: 2969.03 | D10: 2969.03
A11: 5 | B11: 40.74 | C11: 2835.36 | D11: 2835.36
A12: 6 | B12: 40.72 | C12: 3209.2 | D12: 3209.2
A13: 7 | B13: 40.72 | C13: 3760.01 | D13: 3760.01
A14: 8 | B14: 40.72 | C14: 4042.57 | D14: 4042.57
A15: 9 | B15: 40.72 | C15: 4022.88 | D15: 4022.88
A16: 10 | B16: 40.72 | C16: 3639.63 | D16: 3639.63
A17: 11 | B17: 40.72 | C17: 3474.14 | D17: 3474.14
A18: 12 | B18: 40.72 | C18: 3286.69 | D18: 3286.69
A19: 13 | B19: 40.7 | C19: 3126.7 | D19: 3126.7
A20: 14 | B20: 40.7 | C20: 3117.99 | D20: 3117.99
A21: 15 | B21: 40.7 | C21: 3086.27 | D21: 3086.27
A22: 16 | B22: 40.7 | C22: 3129.85 | D22: 3129.85
A23: 17 | B23: 40.7 | C23: 3433.14 | D23: 3433.14
A24: 18 | B24: 40.7 | C24: 2975.33 | D24: 2975.33
A25: 19 | B25: 40.7 | C25: 2628.36 | D25: 2628.36
A26: 20 | B26: 40.7 | C26: 2534.73 | D26: 2534.73
A27: 21 | B27: 40.7 | C27: 2466.24 | D27: 2466.24
A28: 22 | B28: 40.68 | C28: 2353.46 | D28: =C28:C28 -> 2353.46
A29: 23 | B29: 40.68 | C29: 2449.27 | D29: =SUM(C29:C29) -> 2449.27
A30: 24 | B30: 40.68 | C30: 2321.79 | D30: 2321.79
A31: 25 | B31: 40.68 | C31: 2363.74 | D31: 2363.74
A32: 26 | B32: 40.68 | C32: 2535.39 | D32: 2535.39
A33: 27 | B33: 40.68 | C33: 2483.8 | D33: 2483.8
A34: 28 | B34: 40.68 | C34: 2251.47 | D34: 2251.47
A35: 29
A36: 30
A37: 31
A38: Загальний обсяг газу, м3 | C38: =SUM(C7:C37) -> 85230.7 | D38: =SUM(D7:D37) -> 85230.7
A39: Енергія, МДж | C39: =SUMPRODUCT(B7:B37,C7:C37) -> 3469877.39 | D39: =SUMPRODUCT(B7:B37,D7:D37) -> 3469877.39
A40: Теплота згоряння (середньозважене значення за місяць), МДж/м³ | C40: =C39/C38 -> 40.71159089 | D40: =D39/D38 -> 40.71159089
A41: Теплота згоряння (середньозважене значення за місяць), ккал/м³ | C41: =C40*238.8459 -> 9723.796566 | D41: =D40*238.8459 -> 9723.796566
A42: Теплота згоряння (середньозважене значення за місяць), кВт*год./м³ | C42: =C40/3.6 -> 11.30877525 | D42: =D40/3.6 -> 11.30877525

Sheet додаток
A2: Додаток до Паспорту фізико-хімічних показників природного газу №645
A4: Область | B4: ГРС, прямий споживач | C4: Cередньозважене значення вищої теплоти згоряння
C5: МДж/м³ | D5: ккал/м³ | E5: кВт*год./м³
A6: Луганська область | B6: ГРС Краснопопівського ПСГ | C6: 40.71 | D6: 9724 | E6: 11.31
A7: Середньозважене значення вищої теплоти згоряння по маршруту № 645 | C7: 40.71 | D7: 9724 | E7: 11.31
A11: Начальник управління Сєвєродонецького ЛВУМГ Головко Ю.О.
A12: Підрозділу підприємства, якому підпорядкована лабораторія | D12: прізвище | E12: підпис | F12: дата
A13: Інженер ІІ кат.вимірювальної хіміко-аналітичної лабораторії Єрьоменко М.О.
A14: Лабораторія, де здійснювалось вимірювання газу | D14: прізвище | E14: підпис | F14: дата
A15: Начальник служби метрології Ісаєв В.С.
A16: Підрозділу, відповідального за облік газу за маршрутом | D16: прізвище | E16: підпис | F16: дата

Sheet variablesList (hidden)
A1: 3 | B1: x:\gaysin | C1: 10, 11, 24, 25, 127, 128, 132, 180, 207, 215 | D1: x:\
B2: x:\Illinci
B3: x:\Talne
